Workbook

Sheet Orientações
A1: Observações da simulação do fluxo financeiro do Programa Emergencial RS com mudança de custo fixo para custo SELIC.
A2: Atenção: Os arredondamentos de cálculo neste arquivo Excel ainda serão validados pelo sistema de cobrança (em desenvolvimento).
A4: Na planilha CUSTO FIXO car_exig é simulado o fluxo de um contrato com juros exigíveis na carência.
A6: As células em laranja devem ser preenchidas de acordo com as condições contratadas.
A7: Caso o Agente Financeiro deseje simular o fluxo com a taxa cobrada ao Cliente Final, basta substituir a célula em vermelho pela referida taxa (no caso deste exemplo, 10,31%), sendo
A8: 10,31% = (fator taxa BNDES x fator spread Agente) -1 = (1,0556 x 1,045) -1.
A10: A partir da segunda linha da coluna DATA BASE, o usuário deverá preencher manualmente as datas conforme a operação contratada. Nessa coluna, deve ser informado sempre como vencimento o dia 15.
A11: A coluna DATA VENCIMENTO retornará o dia 15 do mês correspondente ou o dia útil imediatamente subsequente, caso o dia 15 seja dia não útil. Esta coluna contém fórmula vinculada a planilha Feriados.
A13: Neste exemplo, o cálculo dos juros é parado em 01/01/2025 em razão da mudança de ano bissexto para ano de 365 dias. Vale destacar que nesse período é utilizada a função ARRED com 15 casas.
A14: Como não há cobrança em 01/01/2025, os juros calculados nesse período (base 366 dias) são acumulados na cobrança posterior, em 15/01/2025.
A16: A linha destacada em amarelo representa a data em que ocorre a mudança de custo fixo para custo Selic.
A17: Considerar a partir desta data as fórmulas de cálculo do sistema MCF. As fórmulas anteriores a esse período utilizam outra metodologia.
A19: Os valores destacados em cinza demonstram o fluxo futuro caso o contrato permanecesse com custo fixo.
A20: Na planilha seguinte (SELIC EXIG car-exig), serão demonstrados os valores calculados considerando a troca de custo para SELIC.
A22: Na planilha SELIC EXIG car_exig é simulado o fluxo do mesmo contrato demonstrado anteriormente, no entanto, com o custo SELIC.
A23: Caso o Agente Financeiro deseje simular o fluxo com a taxa cobrada ao Cliente Final, basta substituir a célula em vermelho pelo seu spread (no caso deste contrato, 6,07%), sendo
A24: 6,07% = (fator remuneração BNDES x fator spread Agente) -1 = (1,015 x 1,045) -1.
A26: A partir da segunda linha da coluna DATA BASE, o usuário deverá preencher manualmente as datas conforme a operação contratada. Nessa coluna, deve ser informado sempre como vencimento o dia 15.
A28: A linha destacada em amarelo representa a data em que ocorre a mudança de custo fixo para custo Selic.
A29: Os valores destacados em cinza correspondem ao período cuja cobrança foi feita com base no custo fixo. No entanto, os valores estão calculados considerando a troca de custo para SELIC.
A31: Os juros nesta planilha são calculados em função da multiplicação dos fatores obtidos nas colunas FATOR SELIC DO PERÍODO e FATOR TAXA FIXA DO PERÍODO.
A32: Em relação ao cálculo do fator SELIC, cabe destacar que é calculado em função da TAXA SELIC D-10 (Cód: 052), disponível no site do BNDES, em Moedas Contratuais.
A33: Esses fatores estão demonstrados na guia "SELIC". Lembramos que nesta guia as células em azul estão projetadas. Caso haja mundança da SELIC, esses valores deverão ser substituídos.
A34: Para que os fatores calculados na coluna FATOR SELIC DO PERÍODO sejam apurados corretamente, é necessário que suas fórmulas sejam preenchidas linha a linha.
A36: A coluna DIFERENÇA A COBRAR (coluna N) demonstra os valores calculados com o novo custo menos os valores cobrados anteriormente.
A37: A coluna DIFERENÇA ATUALIZADA (Coluna O) demonstra esses valores atualizados para a data da cobrança retroativa.

Sheet CUSTO FIXO car_exig
A1: MODALIDADE CRÉDITO EMERGENCIAL | E1: Liberação de Crédito (R$) | G1: 500000
A2: CUSTO FINANCEIRO BNDES | C2: 0.04 | E2: Data da Liberação de Crédito | G2: 2024-07-15
A3: REMUNERAÇÃO BNDES | C3: 0.015
A4: TAXA COBRANÇA BNDES | C4: =ROUND((1+C2)*(1+C3)-1,4) -> 0.0556
A7: DATA BASE | B7: DATA VENCIMENTO | C7: LIBERAÇÃO | D7: FATOR DE JUROS DO PERÍODO | E7: DIAS CORRIDOS | F7: DIAS ANO | G7: JUROS COMPENSATÓRIOS | H7: AMORTIZAÇÃO | I7: SALDO DEVEDOR DE PRINCIPAL | J7: AMORTIZAÇÕES RESTANTES
A8: =G2 -> 2024-07-15 | B8: =WORKDAY(A8-1,1,feriados) -> 2024-07-15 | C8: =G1 -> 500000 | I8: =C8 -> 500000
A9: 2024-10-15 | B9: 2024-10-15 | D9: =ROUND((1+$C$4)^(E9/F9),6) -> 1.013694 | E9: =B9-B8 -> 92 | F9: 366 | G9: =ROUND(I8*(D9-1),2) -> 6847 | I9: =I8 -> 500000
A10: 2025-01-01 | B10: =A10 -> 2025-01-01 | D10: =ROUND((1+$C$4)^(E10/F10),15) -> 1.01159824 | E10: =B10-B9 -> 78 | F10: 366 | G10: =I9*(D10-1) -> 5799.119816 | I10: =I9 -> 500000
A11: =EDATE(A9,3) -> 2025-01-15 | B11: 2025-01-15 | D11: =ROUND((1+$C$4)^(E11/F11),6) -> 1.002078 | E11: =B11-B10 -> 14 | F11: 365 | G11: =ROUND((I10+G10)*(D11-1),2)+G10 -> 6850.169816 | I11: =I10 -> 500000
A12: =EDATE(A11,3) -> 2025-04-15 | B12: 2025-04-15 | D12: =ROUND((1+$C$4)^(E12/F12),6) -> 1.013431 | E12: =B12-B11 -> 90 | F12: 365 | G12: =ROUND(round_to_even(I11*D12,2)-I11,2) -> 6715.5 | I12: =round_to_even(I11+C12-H12,2) -> 500000
A13: =EDATE(A12,3) -> 2025-07-15 | B13: 2025-07-15 | D13: =ROUND((1+$C$4)^(E13/F13),15) -> 1.013581674 | E13: 91 | F13: 365 | G13: =ROUND(round_to_even(I12*D13,2)-I12,2) -> 6790.84 | I13: =round_to_even(I12+C13-H13,2) -> 500000
A14: 2025-08-01 | B14: =A14 -> 2025-08-01 | D14: =ROUND((1+$C$4)^(E14/F14),15) -> 1.002523339 | E14: 17 | F14: 365 | G14: =ROUND(round_to_even(I13*D14,2)-I13,2) -> 1261.67 | K14: Descumpriu cláusula de emprego em 31/07/2025. A partir de 01/08/2025 a remuneração será SELIC + Rem. BNDES
A15: =EDATE(A13,1) -> 2025-08-15 | B15: 2025-08-15 | D15: 1.002077581 | E15: =B15-B14 -> 14 | F15: 365 | G15: =ROUND(round_to_even((I13+G14)*D15,2)-(I13+G14),2)+G14 -> 2303.08 | H15: =round_to_even(I13/J15,2) -> 10416.67 | I15: =round_to_even(I13+C15-H15,2) -> 489583.33 | J15: 48 | K15: Valores já pagos antes do comunicado final (31/10/2025).
A16: =EDATE(A15,1) -> 2025-09-15 | B16: 2025-09-15 | D16: 1.004606162 | E16: 31 | F16: 365 | G16: =ROUND(round_to_even(I15*D16,2)-I15,2) -> 2255.1 | H16: =round_to_even(I15/J16,2) -> 10416.67 | I16: =round_to_even(I15+C16-H16,2) -> 479166.66 | J16: =J15-1 -> 47 | K16: Valores já pagos antes do comunicado final (31/10/2025).
A17: 2025-10-15 | B17: 2025-10-15 | D17: 1.004457246 | E17: 30 | F17: 365 | G17: =ROUND(round_to_even(I16*D17,2)-I16,2) -> 2135.76 | H17: =round_to_even(I16/J17,2) -> 10416.67 | I17: =round_to_even(I16+C17-H17,2) -> 468749.99 | J17: 46 | K17: Valores já pagos antes do comunicado final (31/10/2025).
A19: * As informações relativas ao número de empregados serão apuradas em até 90 dias contatdos do término do respectivo mês de apuração
A20: ** Logo o mês de novembro será cobrado considerando o Custo SELIC

Sheet SELIC EXIG car_exig
A1: MODALIDADE CRÉDITO EMERGENCIAL | F1: Liberação de Crédito (R$) | I1: ='CUSTO FIXO car_exig'!G1 -> 500000
A2: CUSTO FINANCEIRO BNDES | C2: SELIC EXIG. | F2: Data da Liberação de Crédito | I2: ='CUSTO FIXO car_exig'!G2 -> 2024-07-15
A3: REMUNERAÇÃO BNDES | C3: ='CUSTO FIXO car_exig'!C3 -> 0.015
A6: DATA BASE | B6: DATA VENCIMENTO | C6: LIBERAÇÃO | D6: FATOR SELIC DO PERÍODO* | G6: FATOR TAXA FIXA DO PERÍODO | H6: DIAS ÚTEIS | I6: FATOR DE JUROS DO PERÍODO | J6: JUROS COMP. | K6: AMORTIZAÇÃO | L6: SALDO DEVEDOR DE PRINCIPAL | M6: AMORTIZ. REST. | N6: DIFERENÇA A COBRAR | O6: DIFERENÇA ATUALIZADA ATÉ 28/02/2026**
A7: =I2 -> 2024-07-15 | B7: =WORKDAY(A7-1,1,feriados) -> 2024-07-15 | C7: =I1 -> 500000
A8: 2024-10-15 | B8: 2024-10-15
A9: ='CUSTO FIXO car_exig'!A11 -> 2025-01-15 | B9: 2025-01-15
A10: ='CUSTO FIXO car_exig'!A12 -> 2025-04-15 | B10: 2025-04-15
A11: ='CUSTO FIXO car_exig'!A13 -> 2025-07-15 | B11: 2025-07-15 | L11: 500000
A12: ='CUSTO FIXO car_exig'!A14 -> 2025-08-01 | B12: =A12 -> 2025-08-01 | J12: ='CUSTO FIXO car_exig'!G14 -> 1261.67
A13: ='CUSTO FIXO car_exig'!A15 -> 2025-08-15 | B13: 2025-08-15 | D13: =ROUND(PRODUCT(SELIC!C819:C828),15) -> 1.005526798 | G13: =ROUND((1+$C$3)^(H13/252),15) -> 1.000590993 | H13: =NETWORKDAYS(B12,B13-1,feriados) -> 10 | I13: =ROUND(D13*G13,15) -> 1.006121056 | J13: =ROUND(round_to_even((L11+'CUSTO FIXO car_exig'!G14)*I13,2)-(L11+'CUSTO FIXO car_exig'!G14),2)+'CUSTO FIXO car_exig'!G14 -> 4329.92 | K13: =round_to_even(L11/M13,2) -> 10416.67 | L13: =round_to_even(L11+C13-K13,2) -> 489583.33 | M13: 48 | N13: =SUM(J13)-SUM('CUSTO FIXO car_exig'!G15) -> 2026.84 | O13: =round_to_even(N13*ROUND(PRODUCT(I$14:$I16),15),2) -> 2202.23 | P13: Diferença retroativa
A14: ='CUSTO FIXO car_exig'!A16 -> 2025-09-15 | B14: 2025-09-15 | D14: =ROUND(PRODUCT(SELIC!C829:C849),15) -> 1.011641561 | G14: =ROUND((1+$C$3)^(H14/252),15) -> 1.001241488 | H14: =NETWORKDAYS(B13,B14-1,feriados) -> 21 | I14: 1.012897502 | J14: =ROUND(round_to_even(L13*I14,2)-L13,2) -> 6314.4 | K14: =round_to_even(L13/M14,2) -> 10416.67 | L14: =round_to_even(L13+C14-K14,2) -> 479166.66 | M14: =M13-1 -> 47 | N14: =SUM(J14)-SUM('CUSTO FIXO car_exig'!G16) -> 4059.3 | O14: =round_to_even(N14*ROUND(PRODUCT(I$15:$I16),15),2) -> 4354.41 | P14: Diferença retroativa
A15: ='CUSTO FIXO car_exig'!A17 -> 2025-10-15 | B15: =WORKDAY(A15-1,1,feriados) -> 2025-10-15 | D15: =ROUND(PRODUCT(SELIC!C850:C871),15) -> 1.012199289 | G15: =ROUND((1+$C$3)^(H15/252),15) -> 1.001300645 | H15: 22 | I15: 1.013515801 | J15: =ROUND(round_to_even(L14*I15,2)-L14,2) -> 6476.32 | K15: =round_to_even(L14/M15,2) -> 10416.67 | L15: =round_to_even(L14+C15-K15,2) -> 468749.99 | M15: 46 | N15: =SUM(J15)-SUM('CUSTO FIXO car_exig'!G17) -> 4340.56 | O15: =round_to_even(N15*I16,2) -> 4594.02 | P15: Diferença retroativa
A16: 2026-02-28 | B16: 2026-02-28 | D16: =ROUND(PRODUCT(SELIC!C872:C964),15) -> 1.052594114 | G16: =ROUND((1+$C$3)^(H16/252),15) -> 1.00550973 | H16: 93 | I16: 1.058393623 | J16: =ROUND(round_to_even(L15*I16,2)-L15,2) -> 27372.01 | N16: =SUM(N13:N15) -> 10426.7 | O16: =SUM(O13:O15) -> 11150.66 | P16: VALOR TOTAL A COBRAR EM 28/02/2026
A17: *A função MULT multiplica todos os fatores SELIC desde a data de vencimento anterior (inclusive) até a data de vencimento atual (exclusive). Desta forma é possível obter a variação SELIC no período.
A18: ** Diferença atualizada para pagamento em 18/02/2026

Sheet Feriados
A1: FERIADOS
A2: 2009-01-01
A3: 2009-02-23
A4: 2009-02-24
A5: 2009-04-10
A6: 2009-04-21
A7: 2009-05-01
A8: 2009-06-11
A9: 2009-09-07
A10: 2009-10-12
A11: 2009-11-02
A12: 2009-11-15
A13: 2009-12-25
A14: 2010-01-01
A15: 2010-02-15
A16: 2010-02-16
A17: 2010-04-02
A18: 2010-04-21
A19: 2010-05-01
A20: 2010-06-03
A21: 2010-09-07
A22: 2010-10-12
A23: 2010-11-02
A24: 2010-11-15
A25: 2010-12-25
A26: 2011-01-01
A27: 2011-03-07
A28: 2011-03-08
A29: 2011-04-21
A30: 2011-04-22
A31: 2011-05-01
A32: 2011-06-23
A33: 2011-09-07
A34: 2011-10-12
A35: 2011-11-02
A36: 2011-11-15
A37: 2011-12-25
A38: 2012-01-01
A39: 2012-02-20
A40: 2012-02-21
A41: 2012-04-06
A42: 2012-04-21
A43: 2012-05-01
A44: 2012-06-07
A45: 2012-09-07
A46: 2012-10-12
A47: 2012-11-02
A48: 2012-11-15
A49: 2012-12-25
A50: 2013-01-01
A51: 2013-02-11
A52: 2013-02-12
A53: 2013-03-29
A54: 2013-04-21
A55: 2013-05-01
A56: 2013-05-30
A57: 2013-09-07
A58: 2013-10-12
A59: 2013-11-02
A60: 2013-11-15
A61: 2013-12-25
A62: 2014-01-01
A63: 2014-03-03
A64: 2014-03-04
A65: 2014-04-18
A66: 2014-04-21
A67: 2014-05-01
A68: 2014-06-19
A69: 2014-09-07
A70: 2014-10-12
A71: 2014-11-02
A72: 2014-11-15
A73: 2014-12-25
A74: 2015-01-01
A75: 2015-02-16
A76: 2015-02-17
A77: 2015-04-03
A78: 2015-04-21
A79: 2015-05-01
A80: 2015-06-04
A81: 2015-09-07
A82: 2015-10-12
A83: 2015-11-02
A84: 2015-11-15
A85: 2015-12-25
A86: 2016-01-01
A87: 2016-02-08
A88: 2016-02-09
A89: 2016-03-25
A90: 2016-04-21
A91: 2016-05-01
A92: 2016-05-26
A93: 2016-09-07
A94: 2016-10-12
A95: 2016-11-02
A96: 2016-11-15
A97: 2016-12-25
A98: 2017-01-01
A99: 2017-02-27
A100: 2017-02-28
A101: 2017-04-14
A102: 2017-04-21
A103: 2017-05-01
A104: 2017-06-15
A105: 2017-09-07
A106: 2017-10-12
A107: 2017-11-02
A108: 2017-11-15
A109: 2017-12-25
A110: 2018-01-01
A111: 2018-02-12
A112: 2018-02-13
A113: 2018-03-30
A114: 2018-04-21
A115: 2018-05-01
A116: 2018-05-31
A117: 2018-09-07
A118: 2018-10-12
A119: 2018-11-02
A120: 2018-11-15
A121: 2018-12-25
A122: 2019-01-01
A123: 2019-03-04
A124: 2019-03-05
A125: 2019-04-19
A126: 2019-04-21
A127: 2019-05-01
A128: 2019-06-20
A129: 2019-09-07
A130: 2019-10-12
A131: 2019-11-02
A132: 2019-11-15
A133: 2019-12-25
A134: 2020-01-01
A135: 2020-02-24
A136: 2020-02-25
A137: 2020-04-10
A138: 2020-04-21
A139: 2020-05-01
A140: 2020-06-11
A141: 2020-09-07
A142: 2020-10-12
A143: 2020-11-02
A144: 2020-11-15
A145: 2020-12-25
A146: 2021-01-01
A147: 2021-02-15
A148: 2021-02-16
A149: 2021-04-02
A150: 2021-04-21
A151: 2021-05-01
A152: 2021-06-03
A153: 2021-09-07
A154: 2021-10-12
A155: 2021-11-02
A156: 2021-11-15
A157: 2021-12-25
A158: 2022-01-01
A159: 2022-02-28
A160: 2022-03-01
A161: 2022-04-15
A162: 2022-04-21
A163: 2022-05-01
A164: 2022-06-16
A165: 2022-09-07
A166: 2022-10-12
A167: 2022-11-02
A168: 2022-11-15
A169: 2022-12-25
A170: 2023-01-01
A171: 2023-02-20
A172: 2023-02-21
A173: 2023-04-07
A174: 2023-04-21
A175: 2023-05-01
A176: 2023-06-08
A177: 2023-09-07
A178: 2023-10-12
A179: 2023-11-02
A180: 2023-11-15
A181: 2023-12-25
A182: 2024-01-01
A183: 2024-02-12
A184: 2024-02-13
A185: 2024-03-29
A186: 2024-04-18
A187: 2024-04-21
A188: 2024-05-01
A189: 2024-05-30
A190: 2024-09-07
A191: 2024-10-12
A192: 2024-11-02
A193: 2024-11-15
A194: 2024-11-20
A195: 2024-12-25
A196: 2025-01-01
A197: 2025-03-03
A198: 2025-03-04
A199: 2025-04-18
A200: 2025-04-21
... 428 more rows

Sheet SELIC
A1: Data | B1: Selic diária D-10** | C1: FATOR DIÁRIO SELIC D-10
A2: 2022-05-02 | B2: 0.043739 | C2: =1+B2/100 -> 1.00043739 | D2: 2
A3: 2022-05-03 | B3: 0.043739 | C3: =1+B3/100 -> 1.00043739 | D3: 3
A4: 2022-05-04 | B4: 0.043739 | C4: 1.00043739 | D4: 4
A5: 2022-05-05 | B5: 0.043739 | C5: 1.00043739 | D5: 5 | F5: ** Utilizada em Operações com Selic Exigível
A6: 2022-05-06 | B6: 0.043739 | C6: 1.00043739 | D6: 6 | F6: Disponível no site do BNDES, em Moedas Contratuais, Sigla: TAXA SELIC D-10 (Cód: 052)
A7: 2022-05-09 | B7: 0.043739 | C7: 1.00043739 | D7: 7
A8: 2022-05-10 | B8: 0.043739 | C8: 1.00043739 | D8: 8
A9: 2022-05-11 | B9: 0.043739 | C9: 1.00043739 | D9: 9
A10: 2022-05-12 | B10: 0.043739 | C10: 1.00043739 | D10: 10
A11: 2022-05-13 | B11: 0.043739 | C11: 1.00043739 | D11: 11
A12: 2022-05-16 | B12: 0.043739 | C12: 1.00043739 | D12: 12
A13: 2022-05-17 | B13: 0.043739 | C13: 1.00043739 | D13: 13
A14: 2022-05-18 | B14: 0.043739 | C14: 1.00043739 | D14: 14
A15: 2022-05-19 | B15: 0.047279 | C15: 1.00047279 | D15: 15
A16: 2022-05-20 | B16: 0.047279 | C16: 1.00047279 | D16: 16
A17: 2022-05-23 | B17: 0.047279 | C17: 1.00047279 | D17: 17
A18: 2022-05-24 | B18: 0.047279 | C18: 1.00047279 | D18: 18
A19: 2022-05-25 | B19: 0.047279 | C19: 1.00047279 | D19: 19
A20: 2022-05-26 | B20: 0.047279 | C20: 1.00047279 | D20: 20
A21: 2022-05-27 | B21: 0.047279 | C21: 1.00047279 | D21: 21
A22: 2022-05-30 | B22: 0.047279 | C22: 1.00047279 | D22: 22
A23: 2022-05-31 | B23: 0.047279 | C23: 1.00047279 | D23: 23
A24: 2022-06-01 | B24: 0.047279 | C24: 1.00047279 | D24: 24
A25: 2022-06-02 | B25: 0.047279 | C25: 1.00047279 | D25: 25
A26: 2022-06-03 | B26: 0.047279 | C26: 1.00047279 | D26: 26
A27: 2022-06-06 | B27: 0.047279 | C27: 1.00047279 | D27: 27
A28: 2022-06-07 | B28: 0.047279 | C28: 1.00047279 | D28: 28
A29: 2022-06-08 | B29: 0.047279 | C29: 1.00047279 | D29: 29
A30: 2022-06-09 | B30: 0.047279 | C30: 1.00047279 | D30: 30
A31: 2022-06-10 | B31: 0.047279 | C31: 1.00047279 | D31: 31
A32: 2022-06-13 | B32: 0.047279 | C32: 1.00047279 | D32: 32
A33: 2022-06-14 | B33: 0.047279 | C33: 1.00047279 | D33: 33
A34: 2022-06-15 | B34: 0.047279 | C34: 1.00047279 | D34: 34
A35: 2022-06-17 | B35: 0.047279 | C35: 1.00047279 | D35: 35
A36: 2022-06-20 | B36: 0.047279 | C36: 1.00047279 | D36: 36
A37: 2022-06-21 | B37: 0.047279 | C37: 1.00047279 | D37: 37
A38: 2022-06-22 | B38: 0.047279 | C38: 1.00047279 | D38: 38
A39: 2022-06-23 | B39: 0.047279 | C39: 1.00047279 | D39: 39
A40: 2022-06-24 | B40: 0.047279 | C40: 1.00047279 | D40: 40
A41: 2022-06-27 | B41: 0.047279 | C41: 1.00047279 | D41: 41
A42: 2022-06-28 | B42: 0.047279 | C42: 1.00047279 | D42: 42
A43: 2022-06-29 | B43: 0.047279 | C43: 1.00047279 | D43: 43
A44: 2022-06-30 | B44: 0.047279 | C44: 1.00047279 | D44: 44
A45: 2022-07-01 | B45: 0.049037 | C45: 1.00049037 | D45: 45
A46: 2022-07-04 | B46: 0.049037 | C46: 1.00049037 | D46: 46
A47: 2022-07-05 | B47: 0.049037 | C47: 1.00049037 | D47: 47
A48: 2022-07-06 | B48: 0.049037 | C48: 1.00049037 | D48: 48
A49: 2022-07-07 | B49: 0.049037 | C49: 1.00049037 | D49: 49
A50: 2022-07-08 | B50: 0.049037 | C50: 1.00049037 | D50: 50
A51: 2022-07-11 | B51: 0.049037 | C51: 1.00049037 | D51: 51
A52: 2022-07-12 | B52: 0.049037 | C52: 1.00049037 | D52: 52
A53: 2022-07-13 | B53: 0.049037 | C53: 1.00049037 | D53: 53
A54: 2022-07-14 | B54: 0.049037 | C54: 1.00049037 | D54: 54
A55: 2022-07-15 | B55: 0.049037 | C55: 1.00049037 | D55: 55
A56: 2022-07-18 | B56: 0.049037 | C56: 1.00049037 | D56: 56
A57: 2022-07-19 | B57: 0.049037 | C57: 1.00049037 | D57: 57
A58: 2022-07-20 | B58: 0.049037 | C58: 1.00049037 | D58: 58
A59: 2022-07-21 | B59: 0.049037 | C59: 1.00049037 | D59: 59
A60: 2022-07-22 | B60: 0.049037 | C60: 1.00049037 | D60: 60
A61: 2022-07-25 | B61: 0.049037 | C61: 1.00049037 | D61: 61
A62: 2022-07-26 | B62: 0.049037 | C62: 1.00049037 | D62: 62
A63: 2022-07-27 | B63: 0.049037 | C63: 1.00049037 | D63: 63
A64: 2022-07-28 | B64: 0.049037 | C64: 1.00049037 | D64: 64
A65: 2022-07-29 | B65: 0.049037 | C65: 1.00049037 | D65: 65
A66: 2022-08-01 | B66: 0.049037 | C66: 1.00049037 | D66: 66
A67: 2022-08-02 | B67: 0.049037 | C67: =1+B67/100 -> 1.00049037 | D67: 67
A68: 2022-08-03 | B68: 0.049037 | C68: 1.00049037 | D68: 68
A69: 2022-08-04 | B69: 0.049037 | C69: 1.00049037 | D69: 69
A70: 2022-08-05 | B70: 0.049037 | C70: 1.00049037 | D70: 70
A71: 2022-08-08 | B71: 0.049037 | C71: 1.00049037 | D71: 71
A72: 2022-08-09 | B72: 0.049037 | C72: 1.00049037 | D72: 72
A73: 2022-08-10 | B73: 0.049037 | C73: 1.00049037 | D73: 73
A74: 2022-08-11 | B74: 0.049037 | C74: 1.00049037 | D74: 74
A75: 2022-08-12 | B75: 0.049037 | C75: 1.00049037 | D75: 75
A76: 2022-08-15 | B76: 0.049037 | C76: 1.00049037 | D76: 76
A77: 2022-08-16 | B77: 0.049037 | C77: 1.00049037 | D77: 77
A78: 2022-08-17 | B78: 0.049037 | C78: 1.00049037 | D78: 78
A79: 2022-08-18 | B79: 0.050788 | C79: 1.00050788 | D79: 79
A80: 2022-08-19 | B80: 0.050788 | C80: 1.00050788 | D80: 80
A81: 2022-08-22 | B81: 0.050788 | C81: 1.00050788 | D81: 81
A82: 2022-08-23 | B82: 0.050788 | C82: 1.00050788 | D82: 82
A83: 2022-08-24 | B83: 0.050788 | C83: 1.00050788 | D83: 83
A84: 2022-08-25 | B84: 0.050788 | C84: 1.00050788 | D84: 84
A85: 2022-08-26 | B85: 0.050788 | C85: 1.00050788 | D85: 85
A86: 2022-08-29 | B86: 0.050788 | C86: 1.00050788 | D86: 86
A87: 2022-08-30 | B87: 0.050788 | C87: 1.00050788 | D87: 87
A88: 2022-08-31 | B88: 0.050788 | C88: 1.00050788 | D88: 88
A89: 2022-09-01 | B89: 0.050788 | C89: 1.00050788 | D89: 89
A90: 2022-09-02 | B90: 0.050788 | C90: 1.00050788 | D90: 90
A91: 2022-09-05 | B91: 0.050788 | C91: 1.00050788 | D91: 91
A92: 2022-09-06 | B92: 0.050788 | C92: 1.00050788 | D92: 92
A93: 2022-09-08 | B93: 0.050788 | C93: 1.00050788 | D93: 93
A94: 2022-09-09 | B94: 0.050788 | C94: 1.00050788 | D94: 94
A95: 2022-09-12 | B95: 0.050788 | C95: 1.00050788 | D95: 95
A96: 2022-09-13 | B96: 0.050788 | C96: 1.00050788 | D96: 96
A97: 2022-09-14 | B97: 0.050788 | C97: 1.00050788 | D97: 97
A98: 2022-09-15 | B98: 0.050788 | C98: 1.00050788 | D98: 98
A99: 2022-09-16 | B99: 0.050788 | C99: 1.00050788 | D99: 99
A100: 2022-09-19 | B100: 0.050788 | C100: 1.00050788 | D100: 100
A101: 2022-09-20 | B101: 0.050788 | C101: 1.00050788 | D101: 101
A102: 2022-09-21 | B102: 0.050788 | C102: 1.00050788 | D102: 102
A103: 2022-09-22 | B103: 0.050788 | C103: 1.00050788 | D103: 103
A104: 2022-09-23 | B104: 0.050788 | C104: 1.00050788 | D104: 104
A105: 2022-09-26 | B105: 0.050788 | C105: 1.00050788 | D105: 105
A106: 2022-09-27 | B106: 0.050788 | C106: 1.00050788 | D106: 106
A107: 2022-09-28 | B107: 0.050788 | C107: 1.00050788 | D107: 107
A108: 2022-09-29 | B108: 0.050788 | C108: 1.00050788 | D108: 108
A109: 2022-09-30 | B109: 0.050788 | C109: 1.00050788 | D109: 109
A110: 2022-10-03 | B110: 0.050788 | C110: 1.00050788 | D110: 110
A111: 2022-10-04 | B111: 0.050788 | C111: 1.00050788 | D111: 111
A112: 2022-10-05 | B112: 0.050788 | C112: 1.00050788 | D112: 112
A113: 2022-10-06 | B113: 0.050788 | C113: 1.00050788 | D113: 113
A114: 2022-10-07 | B114: 0.050788 | C114: 1.00050788 | D114: 114
A115: 2022-10-10 | B115: 0.050788 | C115: 1.00050788 | D115: 115
A116: 2022-10-11 | B116: 0.050788 | C116: 1.00050788 | D116: 116
A117: 2022-10-13 | B117: 0.050788 | C117: 1.00050788 | D117: 117
A118: 2022-10-14 | B118: 0.050788 | C118: 1.00050788 | D118: 118
A119: 2022-10-17 | B119: 0.050788 | C119: 1.00050788 | D119: 119
A120: 2022-10-18 | B120: 0.050788 | C120: 1.00050788 | D120: 120
A121: 2022-10-19 | B121: 0.050788 | C121: 1.00050788 | D121: 121
A122: 2022-10-20 | B122: 0.050788 | C122: 1.00050788 | D122: 122
A123: 2022-10-21 | B123: 0.050788 | C123: 1.00050788 | D123: 123
A124: 2022-10-24 | B124: 0.050788 | C124: 1.00050788 | D124: 124
A125: 2022-10-25 | B125: 0.050788 | C125: 1.00050788 | D125: 125
A126: 2022-10-26 | B126: 0.050788 | C126: 1.00050788 | D126: 126
A127: 2022-10-27 | B127: 0.050788 | C127: 1.00050788 | D127: 127
A128: 2022-10-28 | B128: 0.050788 | C128: 1.00050788 | D128: 128
A129: 2022-10-31 | B129: 0.050788 | C129: 1.00050788 | D129: 129
A130: 2022-11-01 | B130: 0.050788 | C130: 1.00050788 | D130: 130
A131: 2022-11-03 | B131: 0.050788 | C131: =1+B131/100 -> 1.00050788 | D131: 131
A132: 2022-11-04 | B132: 0.050788 | C132: 1.00050788 | D132: 132
A133: 2022-11-07 | B133: 0.050788 | C133: 1.00050788 | D133: 133
A134: 2022-11-08 | B134: 0.050788 | C134: 1.00050788 | D134: 134
A135: 2022-11-09 | B135: 0.050788 | C135: 1.00050788 | D135: 135
A136: 2022-11-10 | B136: 0.050788 | C136: 1.00050788 | D136: 136
A137: 2022-11-11 | B137: 0.050788 | C137: 1.00050788 | D137: 137
A138: 2022-11-14 | B138: 0.050788 | C138: 1.00050788 | D138: 138
A139: 2022-11-16 | B139: 0.050788 | C139: 1.00050788 | D139: 139
A140: 2022-11-17 | B140: 0.050788 | C140: 1.00050788 | D140: 140
A141: 2022-11-18 | B141: 0.050788 | C141: 1.00050788 | D141: 141
A142: 2022-11-21 | B142: 0.050788 | C142: 1.00050788 | D142: 142
A143: 2022-11-22 | B143: 0.050788 | C143: 1.00050788 | D143: 143
A144: 2022-11-23 | B144: 0.050788 | C144: 1.00050788 | D144: 144
A145: 2022-11-24 | B145: 0.050788 | C145: 1.00050788 | D145: 145
A146: 2022-11-25 | B146: 0.050788 | C146: 1.00050788 | D146: 146
A147: 2022-11-28 | B147: 0.050788 | C147: 1.00050788 | D147: 147
A148: 2022-11-29 | B148: 0.050788 | C148: 1.00050788 | D148: 148
A149: 2022-11-30 | B149: 0.050788 | C149: 1.00050788 | D149: 149
A150: 2022-12-01 | B150: 0.050788 | C150: 1.00050788 | D150: 150
A151: 2022-12-02 | B151: 0.050788 | C151: 1.00050788 | D151: 151
A152: 2022-12-05 | B152: 0.050788 | C152: 1.00050788 | D152: 152
A153: 2022-12-06 | B153: 0.050788 | C153: 1.00050788 | D153: 153
A154: 2022-12-07 | B154: 0.050788 | C154: 1.00050788 | D154: 154
A155: 2022-12-08 | B155: 0.050788 | C155: 1.00050788 | D155: 155
A156: 2022-12-09 | B156: 0.050788 | C156: 1.00050788 | D156: 156
A157: 2022-12-12 | B157: 0.050788 | C157: 1.00050788 | D157: 157
A158: 2022-12-13 | B158: 0.050788 | C158: 1.00050788 | D158: 158
A159: 2022-12-14 | B159: 0.050788 | C159: 1.00050788 | D159: 159
A160: 2022-12-15 | B160: 0.050788 | C160: 1.00050788 | D160: 160
A161: 2022-12-16 | B161: 0.050788 | C161: 1.00050788 | D161: 161
A162: 2022-12-19 | B162: 0.050788 | C162: 1.00050788 | D162: 162
A163: 2022-12-20 | B163: 0.050788 | C163: 1.00050788 | D163: 163
A164: 2022-12-21 | B164: 0.050788 | C164: 1.00050788 | D164: 164
A165: 2022-12-22 | B165: 0.050788 | C165: 1.00050788 | D165: 165
A166: 2022-12-23 | B166: 0.050788 | C166: 1.00050788 | D166: 166
A167: 2022-12-26 | B167: 0.050788 | C167: 1.00050788 | D167: 167
A168: 2022-12-27 | B168: 0.050788 | C168: 1.00050788 | D168: 168
A169: 2022-12-28 | B169: 0.050788 | C169: 1.00050788 | D169: 169
A170: 2022-12-29 | B170: 0.050788 | C170: 1.00050788 | D170: 170
A171: 2022-12-30 | B171: 0.050788 | C171: 1.00050788 | D171: 171
A172: 2023-01-02 | B172: 0.050788 | C172: 1.00050788 | D172: 172
A173: 2023-01-03 | B173: 0.050788 | C173: 1.00050788 | D173: 173
A174: 2023-01-04 | B174: 0.050788 | C174: 1.00050788 | D174: 174
A175: 2023-01-05 | B175: 0.050788 | C175: 1.00050788 | D175: 175
A176: 2023-01-06 | B176: 0.050788 | C176: 1.00050788 | D176: 176
A177: 2023-01-09 | B177: 0.050788 | C177: 1.00050788 | D177: 177
A178: 2023-01-10 | B178: 0.050788 | C178: 1.00050788 | D178: 178
A179: 2023-01-11 | B179: 0.050788 | C179: 1.00050788 | D179: 179
A180: 2023-01-12 | B180: 0.050788 | C180: 1.00050788 | D180: 180
A181: 2023-01-13 | B181: 0.050788 | C181: 1.00050788 | D181: 181
A182: 2023-01-16 | B182: 0.050788 | C182: 1.00050788 | D182: 182
A183: 2023-01-17 | B183: 0.050788 | C183: 1.00050788 | D183: 183
A184: 2023-01-18 | B184: 0.050788 | C184: 1.00050788 | D184: 184
A185: 2023-01-19 | B185: 0.050788 | C185: 1.00050788 | D185: 185
A186: 2023-01-20 | B186: 0.050788 | C186: 1.00050788 | D186: 186
A187: 2023-01-23 | B187: 0.050788 | C187: 1.00050788 | D187: 187
A188: 2023-01-24 | B188: 0.050788 | C188: 1.00050788 | D188: 188
A189: 2023-01-25 | B189: 0.050788 | C189: 1.00050788 | D189: 189
A190: 2023-01-26 | B190: 0.050788 | C190: 1.00050788 | D190: 190
A191: 2023-01-27 | B191: 0.050788 | C191: 1.00050788 | D191: 191
A192: 2023-01-30 | B192: 0.050788 | C192: 1.00050788 | D192: 192
A193: 2023-01-31 | B193: 0.050788 | C193: 1.00050788 | D193: 193
A194: 2023-02-01 | B194: 0.050788 | C194: 1.00050788 | D194: 194
A195: 2023-02-02 | B195: 0.050788 | C195: =1+B195/100 -> 1.00050788 | D195: 195
A196: 2023-02-03 | B196: 0.050788 | C196: 1.00050788 | D196: 196
A197: 2023-02-06 | B197: 0.050788 | C197: 1.00050788 | D197: 197
A198: 2023-02-07 | B198: 0.050788 | C198: 1.00050788 | D198: 198
A199: 2023-02-08 | B199: 0.050788 | C199: 1.00050788 | D199: 199
A200: 2023-02-09 | B200: 0.050788 | C200: 1.00050788 | D200: 200
... 826 more rows
